lending/lending_fUSD_20250501
["ID","MTS","AMOUNT","RATE_DAILY","PERIOD"]
[359507890,1746078644873,-150.0,0.00029444,2]
[359507891,1746078644883,-150.0,0.00029449,2]
[359507892,1746078644893,-150.0,0.0002945,2]
[359507893,1746078644902,-150.0,0.00029455,2]
[359507894,1746078644912,-150.0,0.00029456,2]
[359507895,1746078644921,-150.0,0.00029457,2]
[359507896,1746078644931,-150.0,0.00029459,2]
[359507897,1746078644940,-153.03635294,0.0002946,2]
[359507898,1746078644950,-150.0,0.00029462,2]
[359507899,1746078644960,-150.0,0.00029466,2]
[359507900,1746078644970,-150.0,0.00029486,2]
[359507901,1746078644980,-150.0,0.00029492,2]
[359507902,1746078644990,-150.0,0.00029498,2]
[359507903,1746078644999,-614.0,0.00029514,2]
[359507904,1746078645009,-400.0,0.00029514,2]
[359507905,1746078645019,-169.1684616,0.00029514,2]
[359507906,1746078645029,-500.0,0.00029514,2]
[359507907,1746078645039,-544.0,0.00029514,2]
[359507908,1746078645049,-5797.0118037,0.00029521,21]
[359507909,1746078645059,-1000.0,0.00029543,2]
[359507910,1746078645069,-150.0,0.00029548,2]
[359507911,1746078645081,-150.0,0.00029555,2]
[359507912,1746078645090,-150.0,0.00029573,2]
[359507913,1746078645100,-150.0,0.00029591,2]
[359507914,1746078645113,-150.0,0.00029604,2]
[359507915,1746078645124,-150.0,0.00029626,2]
[359507916,1746078645133,-150.0,0.00029657,2]
[359507917,1746078645142,-150.0,0.00029666,2]
[359507918,1746078645153,-150.0,0.00029668,2]
[359507919,1746078645163,-150.0,0.00029682,2]
[359507920,1746078645173,-150.0,0.00029683,2]
[359507921,1746078645183,-150.0,0.0002969,2]
[359507922,1746078645192,-150.0,0.00029699,2]
[359507923,1746078645202,-236.0,0.000297,2]
[359507924,1746078645211,-374.0,0.000297,2]
[359507925,1746078645222,-764.0,0.000297,2]
[359507926,1746078645233,-150.0,0.00029705,2]
[359507927,1746078645243,-150.0,0.00029713,2]
[359507928,1746078645253,-150.0,0.00029732,2]
[359507929,1746078645265,-150.0,0.00029736,2]
[359507930,1746078645274,-150.0,0.00029745,2]
[359507931,1746078645284,-150.0,0.0002975,2]
[359507932,1746078645293,-150.0,0.00029765,2]
[359507933,1746078645303,-150.0,0.00029773,2]
[359507934,1746078645312,-150.0,0.00029782,2]
[359507935,1746078645321,-150.0,0.00029786,2]
[359507936,1746078645330,-614.0,0.00029788,2]
[359507937,1746078645340,-500.0,0.00029788,2]
[359507938,1746078645351,-544.0,0.00029788,2]
[359507939,1746078645360,-150.0,0.0002979,2]
[359507940,1746078645369,-150.0,0.00029795,2]
[359507941,1746078645379,-150.0,0.00029797,2]
[359507942,1746078645388,-150.0,0.00029811,2]
[359507943,1746078645397,-150.0,0.00029819,2]
[359507944,1746078645407,-150.0,0.0002982,2]
[359507945,1746078645416,-1000.0,0.00029834,2]
[359507946,1746078645425,-150.0,0.00029848,2]
[359507947,1746078645434,-150.0,0.0002985,2]
[359507948,1746078645444,-150.0,0.00029867,2]
[359507949,1746078645453,-150.0,0.00029875,2]
[359507950,1746078645463,-150.0,0.00029899,2]
[359507951,1746078645476,-150.0,0.00029904,2]
[359507952,1746078645486,-11072.45124997,0.0002991,2]
[359507953,1746078645496,-151.0,0.0002991,7]
[359507954,1746078645506,-151.0,0.0002991,7]
[359507955,1746078645515,-151.0,0.0002991,7]
[359507956,1746078645526,-151.0,0.0002991,7]
[359507957,1746078645536,-151.0,0.0002991,7]
[359507958,1746078645545,-236.764178,0.0002991,7]
[359507959,1746078645555,-236.764178,0.0002991,7]
[359507960,1746078645564,-502.714282,0.0002991,7]
[359507961,1746078645574,-265.566425,0.0002991,7]
[359507962,1746078645584,-502.714282,0.0002991,7]
[359507963,1746078645594,-265.566425,0.0002991,7]
[359507964,1746078645604,-358.496672,0.0002991,7]
[359507965,1746078645613,-358.496672,0.0002991,7]
[359507966,1746078645623,-150.0,0.00029924,2]
[359507967,1746078645633,-183.69763913,0.00029924,2]
[359507968,1746078645642,-150.0,0.00029926,2]
[359507969,1746078645652,-150.0,0.00029934,2]
[359507970,1746078645662,-1000.0,0.00029941,2]
[359507971,1746078645671,-150.0,0.00029946,2]
[359507972,1746078645681,-150.0,0.0002995,2]
[359507973,1746078645690,-150.0,0.0002995,2]
[359507974,1746078645699,-151.0,0.00029958,7]
[359507975,1746078645710,-244.835755,0.00029958,7]
[359507976,1746078645720,-473.032953,0.00029958,7]
[359507977,1746078645730,-473.032953,0.00029958,7]
[359507978,1746078645739,-208.642372,0.00029958,7]
[359507979,1746078645749,-553.064693,0.00029958,7]
[359507982,1746078645758,-208.642372,0.00029958,7]
[359507983,1746078645767,-553.064693,0.00029958,7]
[359507984,1746078645777,-151.0,0.00029958,7]
[359507985,1746078645787,-151.0,0.00029958,7]
[359507986,1746078645797,-151.0,0.00029958,7]
[359507987,1746078645806,-151.0,0.00029958,7]
[359507988,1746078645816,-151.0,0.00029958,7]
[359507989,1746078645825,-151.0,0.00029958,7]
[359507990,1746078645835,-164.189359,0.00029958,7]
[359507991,1746078645845,-151.0,0.00029958,7]
[359507992,1746078645854,-150.0,0.00029961,2]
[359507993,1746078645863,-800.0,0.0002997,2]
[359507994,1746078645873,-500.0,0.0002997,2]
[359507995,1746078645883,-700.0,0.0002997,2]
[359507996,1746078645892,-150.0,0.00029972,2]
[359507997,1746078645902,-150.0,0.00029974,2]
[359507998,1746078645914,-150.0,0.00029976,2]
[359507999,1746078645924,-151.0,0.00029979,7]
[359508000,1746078645933,-151.0,0.00029979,7]
[359508001,1746078645942,-151.0,0.00029979,7]
[359508002,1746078645952,-150.0,0.00029979,2]
[359508003,1746078645963,-150.0,0.00029988,2]
[359508004,1746078645972,-1158.44044072,0.0003,10]
[359508005,1746078645982,-1246.67556792,0.0003,2]
[359508006,1746078645992,-1000.0,0.0003,3]
[359508007,1746078646001,-1004.0,0.0003,2]
[359508008,1746078646011,-153.00613,0.0003,7]
[359508009,1746078646021,-1124.978792,0.0003,7]
[359508010,1746078646031,-151.0,0.0003,7]
[359508011,1746078646040,-151.0,0.0003,7]
[359508012,1746078646051,-151.0,0.0003,7]
[359508013,1746078646060,-220.216538,0.0003,7]
[359508014,1746078646069,-220.216538,0.0003,7]
[359508015,1746078646079,-151.0,0.0003,7]
[359508016,1746078646088,-151.0,0.0003,7]
[359508017,1746078646097,-150.0,0.0003,2]
[359508018,1746078646238,-200.0,0.0003,2]
[359508019,1746078646249,-213.0,0.0003,2]
[359508020,1746078646258,-614.0,0.00030062,2]
[359508022,1746078646268,-275.93054994,0.00030062,2]
[359508023,1746078646277,-544.0,0.00030062,2]
[359508025,1746078646287,-10497.66,0.0003011,2]
[359508026,1746078646296,-151.0,0.0003011,7]
[359508027,1746078646305,-151.0,0.0003011,7]
[359508028,1746078646315,-151.0,0.0003011,7]
[359508029,1746078646326,-333.188523,0.0003011,7]
[359508030,1746078646336,-333.188523,0.0003011,7]
[359508031,1746078646346,-151.0,0.0003011,7]
[359508032,1746078646356,-151.0,0.0003011,7]
[359508033,1746078646365,-155.722336,0.0003011,7]
[359508034,1746078646375,-151.0,0.0003011,7]
[359508035,1746078646384,-181.17,0.00030136,2]
[359508036,1746078646393,-610.0,0.00030137,2]
[359508037,1746078646402,-150.0,0.00030137,2]
[359508038,1746078646411,-6294.16,0.00030137,2]
[359508040,1746078646421,-264.0,0.00030137,2]
[359508042,1746078646430,-159.238569,0.00030137,7]
[359508043,1746078646440,-151.0,0.00030137,7]
[359508044,1746078646449,-324.438898,0.00030137,7]
[359508045,1746078646458,-324.438898,0.00030137,7]
[359508046,1746078646471,-151.0,0.00030137,7]
[359508047,1746078646481,-151.0,0.00030137,7]
[359508048,1746078646490,-166.497068,0.00030137,7]
[359508049,1746078646499,-166.497068,0.00030137,7]
[359508050,1746078646509,-151.0,0.00030137,7]
[359508051,1746078646519,-166.36249429,0.00030137,2]
[359508052,1746078646528,-614.0,0.00030336,2]
[359508053,1746078646539,-544.0,0.00030336,2]
[359508054,1746078646551,-160.7731,0.00030362,7]
[359508055,1746078646562,-151.0,0.00030362,7]
[359508056,1746078646571,-5797.0118037,0.00030383,22]
[359508057,1746078646582,-801.26,0.00030411,2]
[359508058,1746078646592,-801.26,0.00030411,2]
[359508059,1746078646601,-249.677,0.00030411,30]
[359508060,1746078646611,-1613.0,0.0003045,2]
[359508061,1746078646621,-248.71531821,0.00030499,2]
[359508062,1746078646633,-614.0,0.0003061,2]
[359508063,1746078646642,-544.0,0.0003061,2]
[359508064,1746078646651,-904.36,0.00030712,2]
[359508065,1746078646660,-237.217446,0.00030809,2]
[359508066,1746078646669,-614.0,0.00030884,2]
[359508067,1746078646679,-544.0,0.00030884,2]
[359508068,1746078646688,-150.0,0.0003093,2]
[359508069,1746078646698,-151.0,0.00030953,7]
[359508070,1746078646709,-164.671152,0.00030953,7]
[359508071,1746078646718,-599.351059,0.00030953,7]
[359508072,1746078646728,-599.351059,0.00030953,7]
[359508073,1746078646737,-175.663975,0.00030953,7]
[359508074,1746078646746,-175.663975,0.00030953,7]
[359508075,1746078646756,-10000.0,0.00031,2]
[359508076,1746078646765,-600.0,0.00031,2]
[359508077,1746078646775,-614.0,0.00031158,2]
[359508078,1746078646785,-544.0,0.00031158,2]
[359508079,1746078646794,-237.217446,0.00031194,2]
[359508080,1746078646803,-150.0,0.00031198,2]
[359508081,1746078646812,-5797.0118037,0.00031245,24]
[359508082,1746078646822,-455.93,0.0003137,2]
[359508083,1746078646831,-313.29156098,0.000314,30]
[359508084,1746078646840,-614.0,0.00031432,2]
[359508085,1746078646850,-544.0,0.00031432,2]
[359508086,1746078646859,-181.17,0.00031506,2]
[359508087,1746078646869,-6294.16,0.00031507,2]
[359508088,1746078646879,-237.217446,0.00031579,2]
[359508089,1746078646890,-1000.0,0.00031622,2]
[359508090,1746078646899,-614.0,0.00031705,2]
[359508091,1746078646908,-544.0,0.00031705,2]
[359508092,1746078646917,-168.611437,0.00031708,2]
[359508093,1746078646926,-150.0,0.00031723,2]
[359508094,1746078646936,-334.94876684,0.00031745,2]
[359508095,1746078646946,-150.0,0.00031837,2]
[359508096,1746078646955,-257.91778498,0.00031868,2]
[359508097,1746078646964,-151.0,0.00031886,7]
[359508098,1746078646974,-151.0,0.00031886,7]
[359508099,1746078646983,-151.0,0.00031886,7]
[359508100,1746078646993,-237.217446,0.00031964,2]
[359508101,1746078647002,-614.0,0.00031979,2]
[359508102,1746078647011,-544.0,0.00031979,2]
[359508103,1746078647021,-10000.0,0.00032,2]
[359508104,1746078647030,-200.1992586,0.00032,30]
[359508105,1746078647040,-1533.56696301,0.00032,2]
[359508106,1746078647050,-1326.03254589,0.00032,2]
[359508107,1746078647061,-338.32,0.00032013,2]
[359508108,1746078647072,-1340.0,0.00032088,2]
[359508109,1746078647087,-923.0,0.00032088,2]
[359508110,1746078647107,-797.0,0.00032088,2]
[359508111,1746078647126,-1289.0,0.00032088,2]
[359508112,1746078647147,-2070.0,0.00032088,2]
[359508113,1746078647164,-1449.0,0.00032088,2]
[359508114,1746078647180,-580.0,0.00032088,2]
[359508115,1746078647199,-913.0,0.00032088,2]
[359508116,1746078647219,-549.0,0.00032088,2]
[359508117,1746078647237,-876.0,0.00032088,2]
[359508118,1746078647256,-878.0,0.00032088,2]
[359508119,1746078647274,-153.0,0.00032088,2]
[359508120,1746078647293,-153.0,0.00032088,2]
[359508121,1746078647310,-4003.0,0.00032088,2]
[359508122,1746078647323,-6750.0,0.00032088,2]
[359508123,1746078647341,-5797.0118037,0.00032107,26]
[359508124,1746078647354,-450.92,0.00032128,2]
[359508125,1746078647370,-1152.32,0.00032128,2]
[359508126,1746078647383,-162.0,0.00032128,2]
[359508127,1746078647398,-372.49,0.00032128,2]
[359508128,1746078647413,-614.0,0.00032253,2]
[359508129,1746078647427,-544.0,0.00032253,2]
[359508130,1746078647442,-237.217446,0.00032349,2]
[359508131,1746078647455,-150.0,0.0003242,2]
[359508132,1746078647471,-150.0,0.0003242,2]
[359508133,1746078647484,-150.0,0.00032516,2]
[359508134,1746078647500,-614.0,0.00032527,2]
[359508135,1746078647516,-544.0,0.00032527,2]
[359508136,1746078647531,-150.0,0.00032603,2]
[359508137,1746078647550,-300.0,0.00032603,2]
[359508138,1746078647564,-150.0,0.00032603,2]
[359508139,1746078647579,-150.0,0.00032603,2]
[359508140,1746078647593,-4658.27428866,0.000328,2]
[359508141,1746078647607,-632.00680059,0.00032801,2]
[359508142,1746078647621,-561.49637896,0.00032801,2]
[359508143,1746078647635,-309.94531634,0.00032864,2]
[359508144,1746078647649,-181.17,0.00032876,2]
[359508145,1746078647666,-200.0,0.00032876,2]
[359508146,1746078647680,-200.0,0.00032876,2]
[359508147,1746078647694,-500.0,0.00032877,2]
[359508148,1746078647709,-250.0,0.00032877,2]
[359508149,1746078647725,-6294.16,0.00032877,2]
[359508150,1746078647740,-331.98,0.00032877,2]
[359508151,1746078647755,-176.59,0.00032877,30]
[359508152,1746078647769,-175.0,0.00032877,2]
[359508153,1746078647783,-231.0,0.00032877,2]
[359508154,1746078647798,-396.16628054,0.00032877,2]
[359508155,1746078647813,-200.0,0.00032877,2]
[359508156,1746078647828,-200.0,0.00032877,2]
[359508157,1746078647843,-500.0,0.00032877,2]
[359508158,1746078647859,-521.64809645,0.000329,2]
[359508159,1746078647873,-204.10556556,0.0003293,30]
[359508160,1746078647888,-5797.0118037,0.00032969,28]
[359508161,1746078647902,-151.0,0.00032969,7]
[359508162,1746078647918,-151.0,0.00032969,7]
[359508163,1746078647932,-151.0,0.00032969,7]
[359508164,1746078647947,-151.0,0.00032969,7]
[359508165,1746078647961,-904.36,0.00032976,2]
[359508166,1746078647976,-10000.0,0.00033,2]
[359508167,1746078647992,-564.03684431,0.00033,120]
[359508168,1746078648007,-4561.98759854,0.00033,2]
[359508169,1746078648023,-1005.0,0.00033,3]
[359508170,1746078648037,-151.0,0.00033,7]
[359508171,1746078648052,-151.0,0.00033,7]
[359508172,1746078648068,-151.0,0.00033,7]
[359508173,1746078648082,-650.0,0.00033,2]
[359508174,1746078648098,-213.0,0.00033,2]
[359508175,1746078648113,-216.8187967,0.000331,2]
[359508176,1746078648127,-500.0,0.00033151,2]
[359508177,1746078648142,-332.0,0.0003316,2]
[359508178,1746078648156,-1000.0,0.00033165,2]
[359508179,1746078648172,-381.3201797,0.00033185,4]
[359508180,1746078648187,-192.09798096,0.00033205,2]
[359508181,1746078648202,-200.0,0.00033205,2]
[359508182,1746078648217,-200.0,0.00033206,2]
[359508183,1746078648232,-200.0,0.00033206,2]
[359508184,1746078648246,-267.46074303,0.00033237,2]
[359508185,1746078648262,-150.0,0.00033309,2]
[359508186,1746078648277,-351.92,0.00033315,2]
[359508187,1746078648292,-500.0,0.00033425,2]
[359508188,1746078648307,-151.0,0.00033425,7]
[359508189,1746078648322,-168.139896,0.00033425,7]
[359508190,1746078648337,-151.0,0.00033425,7]
[359508191,1746078648352,-161.827892,0.00033425,7]
[359508192,1746078648368,-314.905682,0.00033486,7]
[359508193,1746078648383,-314.905682,0.00033486,7]
[359508194,1746078648398,-151.0,0.00033486,7]
[359508195,1746078648413,-151.0,0.00033486,7]
[359508196,1746078648429,-1170.33504023,0.000335,2]
[359508197,1746078648443,-200.0,0.00033537,2]
[359508198,1746078648659,-200.0,0.00033538,2]
[359508199,1746078648685,-200.0,0.00033538,2]
[359508200,1746078648695,-151.08,0.00033616,2]
[359508201,1746078648704,-150.0,0.00033616,2]
[359508202,1746078648714,-150.0,0.00033616,2]
[359508203,1746078648723,-451.39,0.00033616,2]
[359508204,1746078648733,-1199.11,0.00033616,2]
[359508205,1746078648742,-166.86,0.00033616,2]
[359508206,1746078648751,-364.81,0.00033616,2]
[359508207,1746078648761,-150.0,0.00033616,2]
[359508208,1746078648772,-500.0,0.00033699,2]
[359508209,1746078648782,-3508.23,0.000337,7]
[359508210,1746078648791,-5797.0118037,0.00033831,29]
[359508211,1746078648801,-200.0,0.00033872,2]
[359508212,1746078648811,-200.0,0.00033873,2]
[359508213,1746078648820,-500.0,0.00033973,2]
[359508214,1746078648830,-2033.18940034,0.00034,2]
[359508215,1746078648839,-600.0,0.00034,120]
[359508216,1746078648849,-1326.04,0.00034,2]
[359508217,1746078648859,-155.65,0.00034,2]
[359508218,1746078648870,-155.65,0.00034,2]
[359508219,1746078648879,-155.65,0.00034,2]
[359508220,1746078648889,-150.0,0.00034102,2]
[359508221,1746078648899,-334.94876684,0.00034109,2]
[359508222,1746078648908,-200.0,0.00034211,2]
[359508223,1746078648917,-200.0,0.00034212,2]
[359508224,1746078648927,-181.17,0.00034246,2]
[359508225,1746078648937,-500.0,0.00034247,2]
[359508226,1746078648946,-151.0,0.00034314,7]
[359508227,1746078648956,-500.0,0.00034521,2]
[359508228,1746078648966,-150.0,0.00034548,10]
[359508229,1746078648976,-277.35679052,0.00034606,2]
[359508230,1746078648985,-5797.0118037,0.00034693,31]
[359508231,1746078648995,-317.01261664,0.00034795,2]
[359508232,1746078649005,-439.47,0.000348,31]
[359508233,1746078649014,-439.47,0.000348,31]
[359508234,1746078649026,-439.47,0.000348,31]
[359508235,1746078649036,-439.47,0.000348,31]
[359508236,1746078649045,-439.47,0.000348,31]
[359508237,1746078649055,-439.47,0.000348,31]
[359508238,1746078649066,-439.47,0.000348,31]
[359508239,1746078649076,-439.47,0.000348,31]
[359508240,1746078649086,-439.47,0.000348,31]
[359508241,1746078649095,-439.47,0.000348,31]
[359508242,1746078649105,-439.47,0.000348,31]
[359508243,1746078649114,-439.47,0.000348,31]
[359508244,1746078649123,-150.0,0.00034895,2]
[359508245,1746078649133,-174.0,0.00034904,2]
[359508246,1746078649142,-150.0,0.00034922,60]
[359508247,1746078649151,-42326.55731167,0.0003498,2]
[359508248,1746078649161,-281.740845,0.0003498,7]
[359508249,1746078649170,-155.894,0.00034995,2]
[359508250,1746078649180,-1000.0,0.00035,5]
[359508251,1746078649189,-1000.0,0.00035,4]
[359508252,1746078649199,-1000.0,0.00035,4]
[359508253,1746078649209,-180.0,0.00035,30]
[359508254,1746078649219,-700.0,0.00035,2]
[359508255,1746078649229,-359.65006695,0.00035,7]
[359508256,1746078649238,-888.0,0.00035,5]
[359508257,1746078649248,-3005.45970215,0.00035,3]
[359508258,1746078649258,-1136.2,0.00035068,2]
[359508259,1746078649267,-1340.0,0.00035088,2]
[359508260,1746078649279,-923.0,0.00035088,2]
[359508261,1746078649289,-797.0,0.00035088,2]
[359508262,1746078649299,-1289.0,0.00035088,2]
[359508263,1746078649308,-2070.0,0.00035088,2]
[359508264,1746078649317,-1449.0,0.00035088,2]
[359508265,1746078649327,-580.0,0.00035088,2]
[359508266,1746078649337,-913.0,0.00035088,2]
[359508267,1746078649347,-549.0,0.00035088,2]
[359508268,1746078649356,-876.0,0.00035088,2]
[359508269,1746078649366,-878.0,0.00035088,2]
[359508270,1746078649375,-153.0,0.00035088,2]
[359508271,1746078649385,-4003.0,0.00035088,2]
[359508272,1746078649395,-4794.378,0.00035088,2]
[359508273,1746078649404,-904.36,0.00035239,2]
[359508274,1746078649415,-150.0,0.0003542,2]
[359508275,1746078649424,-150.0,0.0003542,2]
[359508276,1746078649434,-152.0,0.00035495,3]
[359508277,1746078649444,-5797.0118037,0.00035555,33]
[359508278,1746078649455,-645.9418004,0.00035571,5]
[359508279,1746078649469,-664.50740952,0.00035571,5]
[359508280,1746078649482,-501.02381,0.00035571,5]
[359508281,1746078649492,-1000.0,0.000356,7]
[359508282,1746078649503,-181.17,0.00035616,2]
[359508283,1746078649513,-1108.0071482,0.00035616,2]
[359508284,1746078649522,-500.0,0.00035616,2]
[359508285,1746078649532,-500.0,0.00035616,2]
[359508286,1746078649542,-700.0,0.0003567,2]
[359508287,1746078649554,-400.0,0.0003567,2]
[359508288,1746078649564,-500.0,0.00035673,13]
[359508289,1746078649573,-500.0,0.00035673,13]
[359508290,1746078649583,-500.0,0.00035673,13]
[359508291,1746078649592,-500.0,0.00035673,13]
[359508292,1746078649601,-500.0,0.00035673,13]
[359508293,1746078649610,-500.0,0.00035673,13]
[359508294,1746078649620,-500.0,0.00035673,13]
[359508295,1746078649629,-500.0,0.00035673,13]
[359508296,1746078649639,-200.0,0.0003568,2]
[359508297,1746078649649,-200.0,0.0003568,2]
[359508298,1746078649658,-600.0,0.0003568,2]
[359508299,1746078649668,-150.0,0.00035688,2]
[359508300,1746078649677,-200.0,0.00035696,2]
[359508301,1746078649687,-243.0,0.000357,48]
[359508302,1746078649697,-168.611437,0.00035744,2]
[359508303,1746078649706,-2000.0,0.0003588,120]
[359508304,1746078649717,-33833.20755427,0.0003593,7]
[359508305,1746078649727,-157.453029,0.0003593,7]
[359508306,1746078649738,-374.259646,0.0003593,7]
[359508307,1746078649748,-374.259646,0.0003593,7]
[359508308,1746078649758,-151.0,0.0003595,7]
[359508309,1746078649768,-287.61899177,0.00035975,2]
[359508310,1746078649783,-198.713687,0.00035975,7]
[359508311,1746078649793,-198.713687,0.00035975,7]
[359508312,1746078649802,-15715.6881047,0.00035975,2]
[359508313,1746078649812,-6043.4123399,0.00036,2]
[359508314,1746078649822,-944.81641843,0.00036,4]
[359508315,1746078649831,-10319.80535879,0.00036,14]
[359508316,1746078649840,-387561.09231018,0.00036,15]
[359508317,1746078649850,-151.0,0.00036,7]
[359508318,1746078649859,-151.0,0.00036,7]
[359508319,1746078649869,-151.0,0.00036,7]
[359508320,1746078649879,-151.0,0.00036,7]
[359508321,1746078649888,-158.70205,0.00036,7]
[359508322,1746078649898,-151.0,0.00036,7]
[359508323,1746078649911,-600.0,0.00036,120]
[359508324,1746078649922,-151.0,0.00036,7]
[359508325,1746078649931,-314.905682,0.00036,7]
[359508326,1746078649941,-314.905682,0.00036,7]
[359508327,1746078649952,-151.0,0.00036,7]
[359508328,1746078649962,-151.0,0.00036,7]
[359508329,1746078649973,-156.051641,0.00036,7]
[359508330,1746078649982,-151.0,0.00036,7]
[359508331,1746078649991,-599.351059,0.00036,7]
[359508332,1746078650001,-599.351059,0.00036,7]
[359508333,1746078650012,-175.663975,0.00036,7]
[359508334,1746078650022,-175.663975,0.00036,7]
[359508335,1746078650031,-151.0,0.00036,7]
[359508336,1746078650040,-275.675757,0.00036,7]
[359508337,1746078650049,-275.675757,0.00036,7]
[359508338,1746078650058,-151.0,0.00036,7]
[359508339,1746078650067,-324.438898,0.00036,7]
[359508340,1746078650077,-324.438898,0.00036,7]
[359508341,1746078650086,-186.517645,0.00036,7]
[359508342,1746078650095,-151.0,0.00036,7]
[359508343,1746078650104,-166.497068,0.00036,7]
[359508344,1746078650113,-155.347705,0.00036,7]
[359508345,1746078650123,-166.497068,0.00036,7]
[359508346,1746078650132,-156.014225,0.00036,7]
[359508347,1746078650141,-202.148189,0.00036,7]
[359508348,1746078650151,-151.0,0.00036,7]
[359508349,1746078650160,-157.076841,0.00036,7]
[359508350,1746078650170,-151.0,0.00036,7]
[359508351,1746078650179,-151.0,0.00036,7]
[359508352,1746078650189,-151.0,0.00036,7]
[359508353,1746078650199,-333.188523,0.00036,7]
[359508354,1746078650208,-333.188523,0.00036,7]
[359508355,1746078650218,-151.0,0.00036,7]
[359508356,1746078650227,-151.0,0.00036,7]
[359508357,1746078650236,-151.0,0.00036,7]
[359508358,1746078650246,-151.0,0.00036,7]
[359508359,1746078650255,-271.881675,0.00036,7]
[359508360,1746078650264,-473.032953,0.00036,7]
[359508361,1746078650273,-473.032953,0.00036,7]
[359508362,1746078650283,-208.642372,0.00036,7]
[359508363,1746078650292,-553.064693,0.00036,7]
[359508364,1746078650301,-208.642372,0.00036,7]
[359508365,1746078650311,-553.064693,0.00036,7]
[359508366,1746078650320,-151.0,0.00036,7]
[359508367,1746078650330,-151.0,0.00036,7]
[359508368,1746078650339,-151.0,0.00036,7]
[359508369,1746078650348,-151.0,0.00036,7]
[359508370,1746078650356,-174.735767,0.00036,7]
[359508371,1746078650365,-151.0,0.00036,7]
[359508372,1746078650374,-151.0,0.00036,7]
[359508373,1746078650382,-151.0,0.00036,7]
[359508374,1746078650391,-151.0,0.00036,7]
[359508375,1746078650401,-151.0,0.00036,7]
[359508376,1746078650411,-151.0,0.00036,7]
[359508377,1746078650421,-151.0,0.00036,7]
[359508378,1746078650431,-236.764178,0.00036,7]
[359508379,1746078650440,-236.764178,0.00036,7]
[359508380,1746078650450,-502.714282,0.00036,7]
[359508381,1746078650459,-265.566425,0.00036,7]
[359508382,1746078650473,-502.714282,0.00036,7]
[359508383,1746078650483,-265.566425,0.00036,7]
[359508384,1746078650492,-358.496672,0.00036,7]
[359508385,1746078650502,-358.496672,0.00036,7]
[359508386,1746078650513,-1326.03,0.00036,2]
[359508387,1746078650524,-213.0,0.00036,2]
[359508388,1746078650535,-181.5,0.00036016,30]
[359508389,1746078650546,-374.259646,0.00036038,7]
[359508390,1746078650556,-374.259646,0.00036038,7]
[359508391,1746078650566,-965.65758984,0.00036171,5]
[359508392,1746078650575,-1500.0,0.00036171,5]
[359508393,1746078650586,-168.611437,0.0003626,30]
[359508394,1746078650596,-5797.0118037,0.00036417,34]
[359508395,1746078650606,-334.94876684,0.00036472,2]